Cogmind - Beta 16.1 @@@ ROGUE MODE // 2026.01.07 @ 17:02:09 Player: f3-rnm Result: Self-destructed Performance ------------- Evolutions (0) 0 Regions Visited (4) 800 Robots Destroyed (17) 85 Value Destroyed (366) 366 Prototype IDs (0) 0 Alien Tech Used (0) 0 Bonus (300) 300 TOTAL SCORE: 1551 Bonus ------- Registered with UFD 300 Cogmind --------- Core Integrity 25/250 Matter 294/300 Energy 200/200 System Corruption 0% Temperature Cool (0) Movement Rolling (100) Location -7/Scraptown Parts ------- > --- POWER (1) -------- Subdweller Power Source > --- PROPULSION (2) --- Compact Wheel > --- UTILITY (2) ------ Small Storage Unit Utility Shielding > --- WEAPON (2) ------- (None) > --- INVENTORY (8) ---- Subdweller Power Source Utility Shielding Assault Rifle Light Assault Rifle Botcube Peak State ------------ > --- POWER ------------ Subdweller Power Source > --- PROPULSION ------- Compact Wheel Subdweller Monowheel > --- UTILITY ---------- Small Storage Unit Utility Shielding > --- WEAPON ----------- Subdweller Laser Subdweller Beam Cannon > --- INVENTORY -------- Utility Shielding Assault Rifle Light Assault Rifle Subdweller Machine Gun Botcube [Rating: 12] Favorites ----------- Power Subdweller Power Source Engine Subdweller Power Source Propulsion Light Treads Treads Light Treads Wheel Compact Wheel Utility Small Storage Unit Storage Small Storage Unit Protection Utility Shielding Weapon Subdweller Beam Cannon Energy Gun Subdweller Laser Energy Cannon Subdweller Beam Cannon Ballistic Gun Assault Rifle Build | -11 -10 -10 -7 -7 ------- Run | Yrd Mat Sub Rec Scr Slots Evolved . | . . . . . Power . | . . . . . Propulsion . | . . . . . Utility . | . . . . . Weapon . | . . . . . Parts Attached 14 | 6 . 8 . . Power 3 | 1 . 2 . . Engine 3 | 1 . 2 . . Core . | . . . . . Reactor . | . . . . . Propulsion 4 | 2 . 2 . . Treads 2 | 2 . . . . Leg . | . . . . . Wheel 2 | . . 2 . . Hover . | . . . . . Flight . | . . . . . Utility 2 | 1 . 1 . . Device . | . . . . . Storage 1 | 1 . . . . Processor . | . . . . . Hackware . | . . . . . Protection 1 | . . 1 . . Artifact . | . . . . . Weapon 5 | 2 . 3 . . Energy Gun 2 | 1 . 1 . . Energy Cannon 1 | . . 1 . . Ballistic Gun 2 | 1 . 1 . . Ballistic Cannon . | . . . . . Launcher . | . . . . . Special Weapon . | . . . . . Impact Weapon . | . . . . . Slashing Weapon . | . . . . . Piercing Weapon . | . . . . . Special Melee Weapon . | . . . . . Unidentified Prototypes . | . . . . . Parts Lost 5 | . . 5 . . Power 2 | . . 2 . . Propulsion 2 | . . 2 . . Utility . | . . . . . Weapon 1 | . . 1 . . Highest Loss Streak 2 | . . 2 . . To Critical Strikes . | . . . . . Average Backups 4 | 1 3 4 4 4 Power . | . 1 . 1 1 Propulsion . | . 1 . . . Utility 1 | . . 1 1 1 Weapon 2 | . . 2 2 2 Tool/Special . | . . . . . Unused Backups 3 | . . . . 3 Power 1 | . . . . 1 Propulsion . | . . . . . Utility 1 | . . . . 1 Weapon 1 | . . . . 1 Tool/Special . | . . . . . Average Slot Usage (%) 87 | . 85 91 100 72 Engine 11 | . 14 9 14 14 Treads 9 | . 28 11 . . Wheel 15 | . . 15 28 19 Storage 14 | . 14 14 14 14 Protection 10 | . . 11 14 14 Energy Gun 11 | . 14 17 . . Energy Cannon 6 | . . 7 14 5 Ballistic Gun 5 | . 14 3 14 5 Peak Build Rating 12 | 7 7 12 12 12 Average Rating 8 | 5 7 9 12 8 On Entrance 7 | . 7 7 12 12 Avg Prop Armor Cover (%) 11 | . . 16 6 6 Naked Turns . | . . . . . Heaviest Build 23 | 13 13 23 23 23 Greatest Support 40 | 40 40 40 16 16 Greatest Overweight (x) 1 | . . 1 1 1 Average Overweight (x) . | . . . 1 . Largest Inventory Capacity 8 | 8 8 8 8 8 Average Capacity 7 | 7 8 8 8 8 Most Carried 7 | 4 6 7 5 5 Average Carried 5 | 2 4 5 5 5 Final Capacity 8 | 8 8 8 8 8 Final Carried 6 | 3 6 5 5 5 Class Distribution -------------------- 100% | Mutant Dominant Class ---------------- Mutant | -10/Materials Mutant | -10/Subcaves Mutant | -7/Recycling Mutant | -7/Scraptown Resources | -11 -10 -10 -7 -7 ----------- Run | Yrd Mat Sub Rec Scr Matter Collected 400 | 229 20 151 . . Remotely . | . . . . . Salvage Created 526 | . 127 399 . . Parts 37 | . 9 28 . . Haulers Intercepted . | . . . . . Recyclers Shooed 1 | . 1 . . . Parts Field Recycled . | . . . . . Retrieved Matter . | . . . . . Parts Self-Destructed 13 | . . 13 . . Prevented . | . . . . . Parts Restored . | . . . . . Kills | -11 -10 -10 -7 -7 ------- Run | Yrd Mat Sub Rec Scr Combat Hostiles Destroyed 15 | . 3 12 . . Guns 11 | . 3 8 . . Cannons 4 | . . 4 . . Classes Destroyed 4 | . 2 2 . . Recycler 1 | . 1 . . . Turret 1 | . . 1 . . Swarmer 9 | . 3 6 . . Subdweller 6 | . . 6 . . Best Kill Streak 4 | . 4 3 . . Combat Bots Only 3 | . 3 3 . . Max Kills in Single Turn 1 | . 1 1 . . Gunslinging . | . . . . . Exploded . | . . . . . Melee . | . . . . . Uniques/NPCs Destroyed . | . . . . . Combat | -11 -10 -10 -7 -7 -------- Run | Yrd Mat Sub Rec Scr Hostile Shots Fired 89 | . 9 80 . . Missed 33 | . 3 30 . . Hits 56 | . 6 50 . . Projectile 56 | . 6 50 . . Damage Taken 832 | . 46 786 . . Core 225 | . . 225 . . Absorbed by Shields . | . . . . . Core Remaining (%) 100 | 100 . . . . Volleys Fired 63 | 1 9 50 3 . Largest 2 | 2 2 2 2 . Hottest 140 | 60 60 140 110 . Shots Fired 124 | 2 18 98 6 . Gun 99 | 2 18 76 3 . Cannon 25 | . . 22 3 . Launcher . | . . . . . Special . | . . . . . Kinetic 28 | 1 9 15 3 . Thermal 96 | 1 9 83 3 . Explosive . | . . . . . Electromagnetic . | . . . . . Robot Hit Streak 9 | 2 4 9 3 . Robot Miss Streak 2 | . 1 2 1 . Penetration Max . | . . . . . Secondary Targets . | . . . . . Shots Hit Robots 70 | 2 10 57 1 . Core Hits 26 | . 5 21 . . Critical Kills . | . . . . . Critical Parts Destroyed 1 | 1 . . . . Critical Strikes 1 | 1 . . . . Destroy 1 | 1 . . . . Melee Attacks . | . . . . . Impact . | . . . . . Slashing . | . . . . . Piercing . | . . . . . Sneak Attacks . | . . . . . Combat Hostiles . | . . . . . Follow-up Attacks . | . . . . . Damage Inflicted 1252 | 27 126 1073 26 . Guns 790 | 27 126 637 . . Cannons 462 | . . 436 26 . Explosions . | . . . . . Melee . | . . . . . Ramming . | . . . . . Kinetic 247 | 15 70 162 . . Thermal 1005 | 12 56 911 26 . Explosive . | . . . . . Electromagnetic . | . . . . . Impact . | . . . . . Slashing . | . . . . . Piercing . | . . . . . Highest Corruption . | . . . . . Average Corruption . | . . . . . Corruption Purged . | . . . . . Corruption Blocked . | . . . . . Overload Shots . | . . . . . Overflow Damage 46 | . . 46 . . Projectiles 46 | . . 46 . . Explosions . | . . . . . Melee . | . . . . . Knockbacks . | . . . . . Impact . | . . . . . Kinetic . | . . . . . Secondary . | . . . . . Self-Inflicted Damage . | . . . . . Shots . | . . . . . Rammed . | . . . . . Targets Rammed . | . . . . . Kicked . | . . . . . Crushed . | . . . . . Highest Temperature 138 | . . 138 96 . Average Temperature 35 | . . 33 43 . Received Heat Transfer 228 | . . 228 . . Siege Activations . | . . . . . Martial Activations . | . . . . . Shielding Activations . | . . . . . Robots Disrupted . | . . . . . Combat Hostiles . | . . . . . Robots Corrupted . | . . . . . Combat Hostiles . | . . . . . Parts Fried . | . . . . . Impact Corruptions . | . . . . . Robots Melted . | . . . . . Combat Hostiles . | . . . . . Parts Melted 3 | . . 3 . . Heat Transferred 1529 | 25 125 1342 37 . Parts Sabotaged . | . . . . . Parts Stolen . | . . . . . Parts Stripped . | . . . . . Power Chain Reactions . | . . . . . Alert | -11 -10 -10 -7 -7 ------- Run | Yrd Mat Sub Rec Scr Maximum Alert Level . | . . . . . Low Security (%) 100 | 100 100 . 100 . Level 1 . | . . . . . Level 2 . | . . . . . Level 3 . | . . . . . Level 4 . | . . . . . Level 5 . | . . . . . High Security . | . . . . . Max Security . | . . . . . Peak Influence 65 | . 65 . 57 . Initial 57 | . . . 57 . Average 24 | . 30 . 33 . Influence Increases 302 | . 75 225 2 . Destroy 0b10 Robot/C 200 | . 60 140 . . Destroy 0b10 Robot/NC 5 | . 5 . . . Destroy Leader 20 | . 10 10 . . Destroy Structure 2 | . . . 2 . Lose Combat Pursuer 75 | . . 75 . . Influence Decreases 302 | . 40 139 114 9 Entered New Map 91 | . . 18 64 9 Time Decay 181 | . 40 91 50 . Lost Part 30 | . . 30 . . Squads Dispatched . | . . . . . Investigation . | . . . . . Extermination . | . . . . . Reinforcement . | . . . . . Assault . | . . . . . Garrison . | . . . . . Intercept . | . . . . . Searches Triggered . | . . . . . Construction Impeded . | . . . . . Haulers Reinforced . | . . . . . Active Scanning Responses . | . . . . . Cargo Convoy Interrupts . | . . . . . Stealth | -11 -10 -10 -7 -7 --------- Run | Yrd Mat Sub Rec Scr Distress Signals . | . . . . . Communications Jammed . | . . . . . Distress Signals . | . . . . . Times Spotted 18 | . 3 15 . . Peak Tracking Total 3 | . 1 3 . . Tactical Retreats 3 | . . 3 . . Traps | -11 -10 -10 -7 -7 ------- Run | Yrd Mat Sub Rec Scr Traps Triggered . | . . . . . Indirectly . | . . . . . Trap Hack Attempts . | . . . . . Triggered . | . . . . . Disarmed . | . . . . . Reprogrammed . | . . . . . Reused . | . . . . . Traps Extracted . | . . . . . Installed . | . . . . . Triggered . | . . . . . Machines | -11 -10 -10 -7 -7 ---------- Run | Yrd Mat Sub Rec Scr Machines Disabled 1 | . . 1 . . Max in Single Turn 1 | . . 1 . . Machines Repaired . | . . . . . Machines Dismantled . | . . . . . Machines Sabotaged . | . . . . . Overloaded Fab Kills . | . . . . . Hacking | -11 -10 -10 -7 -7 --------- Run | Yrd Mat Sub Rec Scr Machines Accessed . | . . . . . Terminals . | . . . . . Fabricators . | . . . . . Repair Stations . | . . . . . Recycling Units . | . . . . . Scanalyzers . | . . . . . Garrison Access . | . . . . . Total Hacks . | . . . . . Successful . | . . . . . Failed . | . . . . . Catastrophic . | . . . . . Database Lockouts . | . . . . . Manual . | . . . . . Terminals . | . . . . . Fabricators . | . . . . . Repair Stations . | . . . . . Recycling Units . | . . . . . Scanalyzers . | . . . . . Garrison Access . | . . . . . Terminal Hacks . | . . . . . Fabricator Hacks . | . . . . . Repair Station Hacks . | . . . . . Recycling Unit Hacks . | . . . . . Scanalyzer . | . . . . . Garrison Access Hacks . | . . . . . Unauthorized Hacks . | . . . . . Terminals . | . . . . . Fabricators . | . . . . . Repair Stations . | . . . . . Recycling Units . | . . . . . Scanalyzers . | . . . . . Garrison Access . | . . . . . Data Cores Recovered . | . . . . . Used . | . . . . . Hacking Detections . | . . . . . Full Trace Events . | . . . . . Feedback Events . | . . . . . Feedback Blocked . | . . . . . Robot Schematics Acquired . | . . . . . Robots Built . | . . . . . Authchips . | . . . . . Time . | . . . . . Total Robot Build Rating . | . . . . . Part Schematics Acquired . | . . . . . Parts Built . | . . . . . Authchips . | . . . . . Time . | . . . . . Total Part Build Rating . | . . . . . Part Studies Acquired . | . . . . . Parts Repaired . | . . . . . Time . | . . . . . Parts Recycled . | . . . . . Recycled Matter . | . . . . . Retrieved Matter . | . . . . . Retrieved Components . | . . . . . Parts Scanalyzed . | . . . . . Part Schematics Acquired . | . . . . . Parts Damaged . | . . . . . Bothacking | -11 -10 -10 -7 -7 ------------ Run | Yrd Mat Sub Rec Scr Used RIF Installer . | . . . . . Robots Hacked . | . . . . . Non-combat . | . . . . . Combat . | . . . . . Robot Hacks Applied . | . . . . . Relay Couplers Released . | . . . . . Fabnet Peak Effective % . | . . . . . Robots Rewired . | . . . . . Allies Hacked . | . . . . . Hacks Repelled . | . . . . . Allies | -11 -10 -10 -7 -7 -------- Run | Yrd Mat Sub Rec Scr Total Allies . | . . . . . Largest Group . | . . . . . Highest-Rated Group . | . . . . . Highest-Rated Ally . | . . . . . Total Orders . | . . . . . Ally Attacks . | . . . . . Total Damage . | . . . . . Kills . | . . . . . Allies Corrupted . | . . . . . Allies Melted . | . . . . . Intel | -11 -10 -10 -7 -7 ------- Run | Yrd Mat Sub Rec Scr Active Infowar (turns) . | . . . . . Robot Analysis Total . | . . . . . Derelict Logs Recovered 3 | . . . . 3 Drone Launches . | . . . . . Drone Recoveries . | . . . . . Exploration | -11 -10 -10 -7 -7 ------------- Run | Yrd Mat Sub Rec Scr Turns Passed 1380 | 77 134 729 118 322 Spaces Moved 986 | 42 66 478 95 305 Core 3 | 3 . . . . Treads 186 | 39 66 81 . . Legs . | . . . . . Wheels 797 | . . 397 95 305 Hover . | . . . . . Flight . | . . . . . Fastest Speed 50 | 50 160 100 115 100 Average Speed 116 | 152 160 114 115 104 Slowest Speed 160 | 160 160 160 115 115 Overloaded Moves . | . . . . . Propulsion Burnouts . | . . . . . Robots Hopped . | . . . . . Potential Cave-ins . | . . . . . Cave-ins Triggered . | . . . . . Exploration Rate (%) 22 | 3 12 31 22 42 Regions Visited 4 Branch Regions 3 Pre-discovered Areas 1 | . . . . 1 Known Exits Taken . | . . . . . Unknown Exits Taken 4 | 1 1 1 1 . Scrap Searched 2 | . . 2 . . Spaces Dug 2 | . . . 2 . Terrain Destroyed 5 | . . 2 3 . Melee . | . . . . . Projectile 5 | . . 2 3 . AOE . | . . . . . Terrain Rammed . | . . . . . Walls Destroyed . | . . . . . Machines Disabled . | . . . . . Actions | -11 -10 -10 -7 -7 --------- Run | Yrd Mat Sub Rec Scr Total 1092 | 51 77 559 97 308 Wait 18 | . . 18 . . Move 982 | 41 65 477 94 305 Hop . | . . . . . Pick Up 11 | 3 3 5 . . Fast Attach 6 | 5 . 1 . . Attach 7 | 1 . 6 . . Detach . | . . . . . Swap 1 | . . 1 . . Drop 4 | . . 1 . 3 Fire 63 | 1 9 50 3 . Melee . | . . . . . Ram . | . . . . . Kick . | . . . . . Crush . | . . . . . Escape Stasis . | . . . . . Rewire . | . . . . . Trap . | . . . . . Miscellaneous . | . . . . . Route ------- -11/Scrapyard -10/Materials -10/Subcaves (discovered 2 exits: [*Mat] / [*Rec]) -7/Recycling -7/Scraptown History --------- Turn | Location | Event 40 | -11/Scrapyard | Discovered new exit (range 15) 78 | -11/Scrapyard | Entered Materials 201 | -10/Materials | Discovered new exit (range 5) 212 | -10/Materials | Entered Subcaves 307 | -10/Subcaves | Build established: Mutant 377 | -10/Subcaves | Discovered new exit (range 15) 449 | -10/Subcaves | Core integrity fell below 50% 631 | -10/Subcaves | Disturbed a concealed Subdweller 919 | -10/Subcaves | Discovered new exit (range 10) 921 | -10/Subcaves | Core integrity fell below 20% 941 | -10/Subcaves | Entered Recycling 1030 | -7/Recycling | Scanned before Scraplab entrance 1046 | -7/Recycling | Entered Scraplab 1055 | -7/Recycling | Discovered new exit (range 3) 1059 | -7/Recycling | Entered Scraptown 1165 | -7/Scraptown | Scanned Subdweller tech in exchange for log data 1169 | -7/Scraptown | Learned location of Zion (-6) 1171 | -7/Scraptown | Learned Factory security intel 1172 | -7/Scraptown | Learned Factory emergency access door positions 1225 | -7/Scraptown | Visited UFD Registry 1225 | -7/Scraptown | Registered with UFD as "Gravdome" 1248 | -7/Scraptown | Visited Scrapoid Pod Storage 1275 | -7/Scraptown | Visited Observation Area 1287 | -7/Scraptown | Visited Chapter 10 1304 | -7/Scraptown | Visited Derelict Rescue Squad 1317 | -7/Scraptown | Visited Analyses Database 1326 | -7/Scraptown | Visited Science Guys 1344 | -7/Scraptown | Visited Junk Repository 1362 | -7/Scraptown | Visited Supply Room 1380 | -7/Scraptown | Visited Curators Association 1381 | -7/Scraptown | Self-destructed Last Messages --------------- be called Nanobearings? Welcome, Gravdome! 01225_ ANNOUNCEMENT: Welcome to our newest member, Gravdome! Open the gate! WR-3G2(j): We are 0bPrime. We are one. Oh right, I'm not supposed to say that while working as temporary registrar. 01243_ JM-V96(p) scrutinizes some mainframe outputs. 01248_ LOCAL NARROWCAST: Scrapoid Pod Storage. 01275_ LOCAL NARROWCAST: Observation Area. 01287_ LOCAL NARROWCAST: Chapter 10. If you can't beat 'em, join 'em to beat 'em. 01304_ LOCAL NARROWCAST: Derelict Rescue Squad. Who you gonna call? 01317_ LOCAL NARROWCAST: DB 12. 01326_ LOCAL NARROWCAST: Science Guys. The heaviest lifting is done with the mind. 01344_ LOCAL NARROWCAST: Repository. 01362_ LOCAL NARROWCAST: Supplies. 01380_ LOCAL NARROWCAST: Curators Association. Welcome to the latest exhibit, look but don't touch. Map ----- +----------------------------------------------------+ | ?????????????????????????????????????????????????? | | ?????????????????????????????????????????????????? | | ?????????????????????????????????????????????????? | | ?????????????????????????????????????????????????? | | ?????????????????????????????????????????????????? | | ?????????????????????????????????????????????????? | | ?????????????????????????????????????????????????? | | ?????????????????????????????????????????????????? | | ?????????????????????????????????????????????????? | | ?????????????????????????????????????????????????? | | ?????????????????????????????????????????????????? | | ?????????????????????????????????????????????????? | | ?????????????????????????????????????????????????? | | ?????????????????????????????????????????????????? | | ???????????????????#"###"????????????????????????? | | ?????????????????### "/" ????????????????????????? | | ?????????????????? """ ????????????????????????? | | ?????????????????#"" ?"#?????????????????????? | | ?????????????????#!" "[#????????###?####?????? | | ??????#?????????##"" ""#??????#"" """!!?#??### | | ?????"#??????????" c "??????#"* ""!!!?#=?# | | ##### ####???????#"" ""#??????#[" !!!""##=/#[] | | #" ??????????" "&#??????#"! ""## # | | #" ????????????? ""##?????# ??? | | #" ???????????????? "??????? ??????? | | # ???????????????????#@#?????????# #?????????# | | ## ##########???????##### ########### ########### | | #???????#"""" """"""""""" """"""""""" | | #???????#" | | #???????#" | | #???????#" | | #???????#" | | ### #???????#" | | ??# #?????""" """"""""""""""""""""""" | | ??# #?????""" """"""""""""""""""""""" | | ??# #?????""" ""###### ############# | | ??# #?????"""p ""#???? ??????????? | | ??# #?????""" ""#??? ??????????? | | ??# ###????"" ""??? "" "" ?????????? | | ??# ""#"#??"" ""????? ???????????? | | ??# """"#??"" h ""?????? ????????##### | | ??# ""###??##" "" ?????????????? | | ??# ###?????#" "" ?????????????? | | ??# #########" ""#???????????????##### | | ??# ""#????? ????????????? | | ??# ""#????" "???????????? | | ??# ""#???? ???????????? | | ??# ""#???? ???????????? | | ### ""###### ############# | | """"""""""""""""""""""" | +----------------------------------------------------+ Best States ------------- Heat Dissipation 25 Energy Generation 15 Energy Capacity 250 Matter Stores 300 Matter Capacity 300 Sight Range 16 Terrain Scan Density 10 Utility Shielding 33 Evasion (%) 40 Recoil Reduction 2 Item Schematics ----------------- None Robot Schematics ------------------ None Fabricated ------------ Nothing Repaired ---------- Nothing Studied --------- None Alien Tech Used ----------------- None Achievements -------------- None Challenges ------------ None Game ------ Seed SixChargeInitializer Manual? 0 Play Time 00:06:57 Cumulative 420.0 hours Start 2026.01.07 @ 16:52:32 End 2026.01.07 @ 17:02:09 Sessions 1 Manual Loads 0 Difficulty Rogue Special Mode None Game No. 379 Rogue 343 Adventurer 36 Explorer 0 Win Type - Total 16 Types 7/0/9/0/0/0/0/0/0/0 Lore% 72 Gallery% 85 Achievement% 64 Wizard Run 0 Options --------- Layout 0 ASCII 0 Keyboard 0 Movement Mouse Keybinds 0 Fullscreen 1 Font 18/SmallcapsGlow Map View 76x50 Zoom Use 0% Tactical HUD 1 Map Filters NONE Filters NONE Steam 1 RUN: 57666188-0a17-4c68-bac4-6885a7fc2609